Cogmind - Beta 16 @@@ ROGUE MODE // 2025.11.26 @ 23:28:08 Player: ktur Result: Destroyed by S-43 Plague with Heavy Machine Gun Performance ------------- Evolutions (8) 4000 Regions Visited (25) 5000 Robots Destroyed (172) 860 Value Destroyed (6489) 6489 Prototype IDs (55) 1100 Alien Tech Used (3) 600 Bonus (7890) 7890 TOTAL SCORE: 25939 Bonus ------- High Alert Combat Kills 353 Follower Combat Kills 937 Registered with UFD 300 Met Optimus in HQ 500 Met Zhirov 300 Met Warlord at Base 500 MAIN.C Attacked Warlord 500 Found Hidden Lab 3000 Scanned by Researcher 500 Pursued by Intercept 1000 Cogmind --------- Core Integrity 0/1450 Matter 300/300 Energy 100/100 System Corruption 5% Temperature Cool (0) Movement Core (50) Location -2/Testing Parts ------- > --- POWER (2) -------- (None) > --- PROPULSION (7) --- (None) > --- UTILITY (11) ----- Experimental Optical Array Experimental Signal Interpreter Experimental Core Analyzer Experimental Armor Integrity Analyzer Advanced Hacking Suite Quantum Router > --- WEAPON (3) ------- Nanosword > --- INVENTORY (5) ---- Experimental Transmission Jammer Advanced Cloaking Device Disintegrator Advanced Remote Datajack Peak State ------------ > --- POWER ------------ Micro Antimatter Reactor > --- PROPULSION ------- Xenon Bombardment Thruster Xenon Bombardment Thruster Xenon Bombardment Thruster Impulse Thruster Array Experimental Q-thruster > --- UTILITY ---------- Large Storage Unit Experimental Optical Array Long-range Sensor Array Experimental Signal Interpreter Experimental Core Analyzer Experimental Armor Integrity Analyzer Experimental Focal Shield Advanced Hacking Suite Advanced Hacking Suite Quantum Router Authchip [Weapon] > --- WEAPON ----------- Warp Cannon Nanosword > --- INVENTORY -------- Experimental Matter Compressor Femtoactuators Advanced ECM Suite Experimental Phase Shifter Advanced Cloaking Device Improved Utility Shielding Enhanced Scrap Shield Advanced Hardlight Generator Advanced Trap Extractor Transdimensional Reconstructor Disintegrator Mini Smartbomb Launcher [Rating: 155] Favorites ----------- Power Light Fission Core Engine Light Angular Momentum Engine Power Core Light Fission Core Reactor Micro Antimatter Reactor Propulsion Cooled VTOL Module Treads Light Treads Wheel Subdweller Monowheel Hover Unit Improved Antigrav System Flight Unit Cooled VTOL Module Utility Advanced Hacking Suite Device Deep Structural Scanner Storage Large Storage Unit Processor Experimental Signal Interpreter Hackware Advanced Hacking Suite Protection Experimental Utility Shielding Weapon Plasma Sword Energy Gun Subdweller Laser Energy Cannon Proton Cannon Ballistic Gun Subdweller Machine Gun Ballistic Cannon Antimatter Cannon Launcher Mini Smartbomb Launcher Special Weapon Multitool Impact Weapon Great Maul Slashing Weapon Plasma Sword Piercing Weapon Makeshift Spear Special Melee Weapon Dirty Datajack Build | -11 -10 -10 -10 -8 -8 -6 -6 -6 -5 -5 -5 -5 -4 -4 -4 -4 -4 -4 -4 -3 -3 -3 -3 -2 -2 ------- Run | Yrd Mat Min Sub Rec Scr Fac Low Low Fac Upp Upp War Pro Fac Was Fac Upp Upp Zhi Pro Res Arm Lab Res Tes Slots Evolved 16 | . . . . . . 8 . . 2 . . . . 2 . . . . . . 2 . . 2 . Power 1 | . . . . . . . . . . . . . . . . . . . . . 1 . . . . Propulsion 5 | . . . . . . 2 . . 1 . . . . 1 . . . . . . 1 . . . . Utility 9 | . . . . . . 6 . . 1 . . . . 1 . . . . . . . . . 1 . Weapon 1 | . . . . . . . . . . . . . . . . . . . . . . . . 1 . Parts Attached 158 | 7 2 4 10 2 9 38 . . 15 . 1 10 . 2 1 10 . . 1 . 4 8 6 18 10 Power 16 | 1 . 1 . 1 1 5 . . 2 . . . . . . 1 . . . . 1 . . 3 . Engine 5 | 1 . 1 . 1 . 2 . . . . . . . . . . . . . . . . . . . Core 7 | . . . . . 1 3 . . 1 . . . . . . 1 . . . . 1 . . . . Reactor 4 | . . . . . . . . . 1 . . . . . . . . . . . . . . 3 . Propulsion 44 | 2 . 1 3 . 4 8 . . 3 . . 2 . . . 1 . . . . 1 2 . 13 4 Treads 10 | 2 . 1 2 . 1 4 . . . . . . . . . . . . . . . . . . . Leg . | . . . . . . . . . . . . . . . . . . . . . . . . . . Wheel 4 | . . . 1 . 3 . . . . . . . . . . . . . . . . . . . . Hover 9 | . . . . . . . . . . . . 1 . . . . . . . . . . . 5 3 Flight 21 | . . . . . . 4 . . 3 . . 1 . . . 1 . . . . 1 2 . 8 1 Utility 68 | 2 1 1 1 1 3 19 . . 7 . 1 5 . 2 1 8 . . 1 . 2 3 3 2 5 Device 25 | 1 1 1 . . 2 5 . . 2 . . 3 . 1 1 3 . . . . . 1 1 1 2 Storage 7 | 1 . . 1 . 1 1 . . 1 . . 1 . . . 1 . . . . . . . . . Processor 7 | . . . . . . 4 . . . . . 1 . 1 . . . . . . . . . . 1 Hackware 19 | . . . . . . 5 . . 3 . . . . . . 4 . . 1 . 2 2 1 1 . Protection 10 | . . . . 1 . 4 . . 1 . 1 . . . . . . . . . . . 1 . 2 Artifact . | . . . . . . . . . . . . . . . . . . . . . . . . . . Weapon 30 | 2 1 1 6 . 1 6 . . 3 . . 3 . . . . . . . . . 3 3 . 1 Energy Gun 5 | . . 1 1 . . . . . . . . 1 . . . . . . . . . 1 1 . . Energy Cannon 7 | . . . . . . 1 . . . . . 2 . . . . . . . . . 1 2 . 1 Ballistic Gun 7 | 2 1 . 2 . 1 1 . . . . . . . . . . . . . . . . . . . Ballistic Cannon 2 | . . . . . . 2 . . . . . . . . . . . . . . . . . . . Launcher 3 | . . . 1 . . . . . 2 . . . . . . . . . . . . . . . . Special Weapon 1 | . . . . . . 1 . . . . . . . . . . . . . . . . . . . Impact Weapon 1 | . . . 1 . . . . . . . . . . . . . . . . . . . . . . Slashing Weapon 2 | . . . . . . . . . 1 . . . . . . . . . . . . 1 . . . Piercing Weapon 1 | . . . 1 . . . . . . . . . . . . . . . . . . . . . . Special Melee Weapon 1 | . . . . . . 1 . . . . . . . . . . . . . . . . . . . Unidentified Prototypes 35 | . . 1 . . . 5 . . 5 . . 9 . . 1 1 . . 1 . . 2 5 1 4 Corrupted Parts 1 | . . . . . . 1 . . . . . . . . . . . . . . . . . . . System Corruption 2 | . . . . . . 2 . . . . . . . . . . . . . . . . . . . Parts Lost 53 | . . . 5 . . 16 . . . . 1 . . . . 2 . . . 1 1 4 4 6 13 Power 5 | . . . . . . 2 . . . . . . . . . . . . . . . 2 . . 1 Propulsion 27 | . . . 2 . . 5 . . . . . . . . . . . . . 1 1 1 4 5 8 Utility 14 | . . . 1 . . 6 . . . . 1 . . . . 2 . . . . . . . 1 3 Weapon 7 | . . . 2 . . 3 . . . . . . . . . . . . . . . 1 . . 1 Highest Loss Streak 10 | . . . 2 . . 10 . . . . 1 . . . . 1 . . . 1 1 4 4 3 5 To Critical Strikes . | . . . . . . . . . . . . . . . . . . . . . . . . . . Average Backups 12 | 3 6 7 10 19 21 21 2 2 6 8 7 7 8 8 8 10 13 13 13 13 12 12 5 10 10 Power . | . 1 . . 1 . 1 . . . . . . . . . . . . . . . . . . . Propulsion 1 | 1 4 2 1 2 3 4 1 1 . 2 2 1 1 . . . . . . . . . . . . Utility 6 | . . 2 4 8 9 7 1 1 4 6 5 4 5 5 6 8 10 10 9 9 8 9 2 6 7 Weapon 2 | . . 1 2 5 2 2 . . 1 . . . 2 2 2 2 3 3 3 3 3 2 1 2 2 Tool/Special . | . . . . . . . . . . . . . . . . . . . . . . . . . . Unused Backups 55 | . 3 7 1 . 4 14 . . 6 . . 1 . . 1 5 . 1 . . 1 2 2 . 7 Power 2 | . . 1 . . . . . . . . . . . . . . . . . . . . . . 1 Propulsion 13 | . 2 5 . . . 5 . . . . . . . . . 1 . . . . . . . . . Utility 24 | . . . . . 1 5 . . 2 . . 1 . . 1 4 . 1 . . 1 2 2 . 4 Weapon 9 | . 1 1 . . 2 . . . 4 . . . . . . . . . . . . . . . 1 Tool/Special 7 | . . . 1 . 1 4 . . . . . . . . . . . . . . . . . . 1 Average Slot Usage (%) 89 | . 100 99 87 90 85 85 100 100 98 100 98 100 100 99 100 95 94 94 94 94 78 92 59 68 66 Engine 4 | . 14 14 14 14 6 4 . . . . . . . . . . . . . . . . . . . Core 3 | . . . . . 6 1 6 6 4 5 5 5 5 5 5 4 5 5 5 5 1 8 . . . Treads 8 | . 28 27 21 14 7 21 . . . . . . . . . . . . . . . . . . . Wheel 3 | . . . 6 14 20 . . . . . . . . . . . . . . . . . . . . Flight 14 | . . . . . . 1 26 26 28 29 29 28 29 30 31 30 31 31 31 31 24 27 10 12 12 Device 7 | . 14 13 2 . 7 14 12 13 9 10 6 8 5 5 5 6 5 5 5 5 4 4 . 2 5 Storage 7 | . 14 13 14 14 13 5 . . 4 5 5 5 5 5 5 5 5 5 5 5 4 4 1 2 3 Processor 9 | . . . . . . 8 13 13 11 11 11 12 17 20 21 21 21 21 19 15 14 14 14 13 16 Hackware 11 | . . . . . . 7 20 20 22 23 23 21 17 15 15 14 15 15 16 21 18 20 21 22 15 Protection 2 | . . . . 4 1 5 6 6 1 . 2 2 5 5 5 4 5 5 5 5 4 2 4 2 2 Energy Gun 3 | . . 6 11 14 8 . . . . . . . . . . . . . . . . . . . . Ballistic Gun 4 | . 28 21 6 14 10 . . . . . . . . . . . . . . . . . . . . Launcher 1 | . . . 3 . . . . . 1 5 5 5 5 5 5 1 . . . . . 2 . . . Slashing Weapon 2 | . . . . . . . . . 3 5 5 4 5 5 5 5 4 5 5 5 4 3 4 2 3 Piercing Weapon 1 | . . . 3 . 2 4 6 6 1 . . . . . . . . . . . . . . . . Peak Build Rating 155 | 7 9 20 21 21 23 77 75 75 91 91 92 101 101 115 120 125 116 116 120 120 132 154 116 143 155 Average Rating 72 | 4 7 14 18 20 18 55 74 75 85 89 88 93 101 114 115 114 116 115 116 119 115 146 93 116 122 On Entrance 79 | . 7 9 19 20 21 23 73 75 75 91 89 92 101 101 115 116 116 116 116 120 114 127 117 104 121 Avg Prop Armor Cover (%) 12 | . . . 16 14 17 7 . . 2 . . . . . . . . . . . 12 . . 11 6 Naked Turns . | . . . . . . . . . . . . . . . . . . . . . . . . . . Heaviest Build 210 | 12 15 24 100 100 210 129 11 11 26 26 26 29 26 27 26 35 33 32 33 33 34 45 36 37 46 Greatest Support 88 | 40 40 40 42 20 40 88 28 28 35 27 33 33 33 40 34 43 34 34 34 43 43 53 31 51 43 Greatest Overweight (x) 10 | . . . 4 4 10 3 . . 4 . . 1 . . . 1 . . . . 1 . 5 2 8 Average Overweight (x) . | . . . 2 4 5 . . . . . . . . . . . . . . . . . . . . Largest Inventory Capacity 35 | 8 8 8 25 25 35 35 5 5 10 10 10 10 10 10 10 15 15 15 15 15 15 15 15 15 15 Average Capacity 16 | 7 8 7 19 25 28 24 5 5 9 10 10 10 10 10 10 13 15 15 15 15 15 15 8 11 13 Most Carried 35 | 7 8 8 24 25 35 32 5 5 10 10 10 10 10 10 10 15 15 15 15 15 15 15 15 15 15 Average Carried 14 | 3 7 7 12 24 25 24 4 5 9 10 9 9 10 9 10 12 15 14 14 15 14 14 5 10 12 Final Capacity 35 | 8 8 8 25 25 35 5 5 5 10 10 10 10 10 10 10 15 15 15 15 15 15 15 15 15 5 Final Carried 33 | 4 8 8 24 25 33 4 5 5 10 10 10 10 10 10 10 15 15 15 15 15 15 15 15 14 5 Class Distribution -------------------- 34% | Hacker-Scout 33% | Mutant 7% | Derelict-Mutant 5% | Hacker-Assassin 4% | Hacker-Sprinter 4% | Hauler-Mutant Dominant Class ---------------- Mutant | -10/Materials Mutant | -10/Mines Mutant | -10/Subcaves Mutant | -8/Recycling Mutant | -8/Scraptown Derelict-Mutant | -6/Factory Hacker-Sprinter | -6/Lower Caves Hacker-Sprinter | -6/Lower Caves Hacker-Scout | -5/Factory Hacker-Scout | -5/Upper Caves Hacker-Scout | -5/Upper Caves Hacker-Assassin | -5/Warlord Hacker-Scout | -4/Proximity Caves Hacker-Scout | -4/Factory Hacker-Scout | -4/Waste Hacker-Scout | -4/Factory Hacker-Scout | -4/Upper Caves Hacker-Scout | -4/Upper Caves Hacker-Scout | -4/Zhirov Hacker-Scout | -3/Proximity Caves Hacker-Scout | -3/Research Hacker-Scout | -3/Armory Wizard-Mutant | -3/Lab Wizard-Mutant | -2/Research Hacker-Mutant | -2/Testing Resources | -11 -10 -10 -10 -8 -8 -6 -6 -6 -5 -5 -5 -5 -4 -4 -4 -4 -4 -4 -4 -3 -3 -3 -3 -2 -2 ----------- Run | Yrd Mat Min Sub Rec Scr Fac Low Low Fac Upp Upp War Pro Fac Was Fac Upp Upp Zhi Pro Res Arm Lab Res Tes Matter Collected 5984 | 240 . 271 259 20 173 1114 . . 456 105 . 38 125 500 . 828 39 34 . 40 74 563 171 389 545 Remotely . | . . . . . . . . . . . . . . . . . . . . . . . . . . Salvage Created 6999 | 24 . 328 428 . . 1821 . . 345 112 12 . 98 503 . 739 39 . . 276 99 469 56 584 1066 Parts 334 | 4 . 27 29 . . 66 . . 17 9 . . 11 23 . 37 4 . . 8 5 10 . 36 48 Haulers Intercepted 7 | . . . . . . 2 . . 2 . . . . 2 . 1 . . . . . . . . . Recyclers Shooed 10 | 1 . 1 . . . 6 . . . . . . . 1 . . . . . . . . . 1 . Parts Field Recycled . | . . . . . . . . . . . . . . . . . . . . . . . . . . Retrieved Matter . | . . . . . . . . . . . . . . . . . . . . . . . . . . Parts Self-Destructed 45 | . . . 20 . . . . . . 9 1 . 7 . . . 4 . . 4 . . . . . Prevented 6 | . . . . . . . . . . . . . . . . . . . . 6 . . . . . Parts Restored . | . . . . . . . . . . . . . . . . . . . . . . . . . . Kills | -11 -10 -10 -10 -8 -8 -6 -6 -6 -5 -5 -5 -5 -4 -4 -4 -4 -4 -4 -4 -3 -3 -3 -3 -2 -2 ------- Run | Yrd Mat Min Sub Rec Scr Fac Low Low Fac Upp Upp War Pro Fac Was Fac Upp Upp Zhi Pro Res Arm Lab Res Tes Combat Hostiles Destroyed 129 | . . 17 12 . . 22 . . . 7 . . 8 9 . 15 3 . . 1 . 10 1 12 12 Melee 31 | . . . 1 . . 7 . . . . . . . 2 . 7 . . . 1 . . 1 3 9 Guns 28 | . . 17 10 . . 1 . . . . . . . . . . . . . . . . . . . Cannons 15 | . . . . . . 11 . . . . . . . . . . . . . . . . . 1 3 AOE 54 | . . . . . . 3 . . . 7 . . 8 7 . 8 3 . . . . 10 . 8 . Classes Destroyed 20 | 1 . 2 2 . . 8 . . 1 . . . . . . . . . . 1 1 3 . . 1 Worker 5 | . . . . . . 2 . . 2 . . . . . . 1 . . . . . . . . . Builder 2 | . . . . . . 1 . . 1 . . . . . . . . . . . . . . . . Tunneler 1 | 1 . . . . . . . . . . . . . . . . . . . . . . . . . Hauler 7 | . . . . . . 2 . . 2 . . . . 2 . 1 . . . . . . . . . Recycler 10 | . . . . . . 8 . . . . . . . 1 . . . . . . . . . 1 . Mechanic 1 | . . . . . . . . . . . . . . . . . . . . . 1 . . . . Operator 4 | . . . . . . 1 . . 1 . . . . . . 1 . . . . . . . 1 . Drone 1 | . . . . . . . . . . . . . . . . . . . . 1 . . . . . Turret 1 | . . . 1 . . . . . . . . . . . . . . . . . . . . . . Watcher 9 | . . . . . . . . . 2 . . . . 1 . 2 . . . . 1 2 . . 1 Swarmer 68 | . . 13 3 . . 10 . . . 6 . . 8 8 . 4 3 . . . . 5 . 8 . Saboteur 1 | . . . . . . . . . . . . . . . . . . . . . . 1 . . . Grunt 23 | . . 4 . . . 5 . . . 1 . . . . . 4 . . . . . 1 . . 8 Brawler 2 | . . . . . . . . . . . . . . . . . . . . . . 2 . . . Researcher 1 | . . . . . . . . . . . . . . . . . . . . . . . . . 1 Sentry 3 | . . . . . . 2 . . . . . . . . . 1 . . . . . . . . . Specialist 2 | . . . . . . . . . . . . . . . . . . . . . . 2 . . . Hunter 3 | . . . . . . 2 . . . . . . . . . . . . . . . 1 . . . Programmer 16 | . . . . . . 3 . . . . . . . 1 . 6 . . . . . . . 4 2 Tracker 2 | . . . . . . . . . . . . . . . . . . . . . . . . . 2 Subdweller 9 | . . . 9 . . . . . . . . . . . . . . . . . . . . . . Best Kill Streak 10 | 1 . 5 2 . . 4 . . 3 5 . . 8 10 . 4 3 . . 1 1 5 1 5 7 Combat Bots Only 8 | . . 5 2 . . 4 . . . 5 . . 8 4 . 4 3 . . 1 . 5 1 4 6 Max Kills in Single Turn 5 | 1 . 2 2 . . 2 . . 1 3 . . 4 4 . 3 3 . . 1 1 5 1 4 1 Gunslinging 1 | . . . 1 . . . . . . . . . . . . . . . . . . . . . . Exploded 5 | . . . . . . 2 . . . 3 . . 4 4 . 3 3 . . . . 5 . 4 . Melee 1 | . . . 1 . . 1 . . . . . . . 1 . 1 . . . 1 . . 1 1 1 Uniques/NPCs Destroyed 1 | . . . . . . . . . . . . . . . . . . . . . . . 1 . . A5 (-3/Lab) Combat | -11 -10 -10 -10 -8 -8 -6 -6 -6 -5 -5 -5 -5 -4 -4 -4 -4 -4 -4 -4 -3 -3 -3 -3 -2 -2 -------- Run | Yrd Mat Min Sub Rec Scr Fac Low Low Fac Upp Upp War Pro Fac Was Fac Upp Upp Zhi Pro Res Arm Lab Res Tes Hostile Shots Fired 998 | . . 51 89 . . 407 3 . 5 7 4 . 11 8 . 36 . . . 5 14 62 66 71 159 Missed 375 | . . 16 27 . . 150 3 . 3 2 1 . 4 5 . 16 . . . 3 9 37 21 31 47 Hits 623 | . . 35 62 . . 257 . . 2 5 3 . 7 3 . 20 . . . 2 5 25 45 40 112 Melee 5 | . . . . . . . . . . . . . . . . . . . . . . . . 5 . Projectile 618 | . . 35 62 . . 257 . . 2 5 3 . 7 3 . 20 . . . 2 5 25 45 35 112 AOE 6 | . . . 4 . . . . . . . . . . . . . . . . . . . . 2 . Critical Strikes 30 | . . . . . . 8 . . 1 . . . . . . 3 . . . 1 1 . . 8 8 Actively Blocked 1 | . . . . . . . . . . . . . . . . . . . . . . . . 1 . Part Disruptions 1 | . . . . . . . . . . . . . . . . . . . . . . . 1 . . Damage Taken 11243 | . . 218 984 . . 3896 . . 39 86 62 . 105 51 . 406 . . . 64 117 646 1166 1044 2359 Core 3792 | . . 21 176 . . 695 . . . 51 . . 46 32 . 204 . . . . 43 171 668 435 1250 Absorbed by Shields 489 | . . 89 107 . . 184 . . . . . . . . . . . . . . . 109 . . . Redirected to Shielding 539 | . . . . . . 72 . . 18 . . . 13 . . 38 . . . 38 . 32 . 132 196 Ignored by Resistances 186 | . . . . . . 186 . . . . . . . . . . . . . . . . . . . Regen/Repaired (Parts) 370 | . . . . . . . . . . . . 12 . . . 158 . . . . . 107 . . 93 Core Remaining (%) 56 | 100 . . . . 21 . . 18 . . . . 90 . . . . . . 79 . . 32 . . Volleys Fired 206 | 5 . 28 29 . . 88 . . . 3 . 1 3 4 . 9 1 . . . 1 16 4 4 10 Largest 2 | 2 . 2 2 . . 2 . . . 1 . 1 1 1 . 1 1 . . . 1 1 1 1 1 Hottest 105 | 40 . 98 105 . . 75 . . . 80 . 100 80 80 . 80 80 . . . 45 80 45 100 100 Shots Fired 284 | 10 . 56 48 . . 114 . . . 3 . 1 3 4 . 9 1 . . . 1 16 4 4 10 Gun 138 | 10 . 56 40 . . 22 . . . . . . . . . 3 . . . . 1 2 4 . . Cannon 100 | . . . . . . 88 . . . . . 1 . . . . . . . . . . . 1 10 Launcher 46 | . . . 8 . . 4 . . . 3 . . 3 4 . 6 1 . . . . 14 . 3 . Special . | . . . . . . . . . . . . . . . . . . . . . . . . . . Kinetic 170 | 10 . 39 18 . . 103 . . . . . . . . . . . . . . . . . . . Thermal 50 | . . 17 22 . . . . . . . . . . . . . . . . . . . . 1 10 Explosive 46 | . . . 8 . . 4 . . . 3 . . 3 4 . 6 1 . . . . 14 . 3 . Electromagnetic 7 | . . . . . . 7 . . . . . . . . . . . . . . . . . . . Entropic 11 | . . . . . . . . . . . . 1 . . . 3 . . . . 1 2 4 . . Robot Hit Streak 12 | 5 . 9 11 . . 7 . . . 4 . . 6 . . 8 . . . . . . 2 4 12 Robot Miss Streak 5 | 1 . 3 5 . . 4 . . . . . . . . . . . . . . . . 2 . . Penetration Max . | . . . . . . . . . . . . . . . . . . . . . . . . . . Secondary Targets 3 | . . 2 1 . . . . . . . . . . . . . . . . . . . . . . Max Gunslinging Chain 1 | . . 1 1 . . . . . . . . . . . . . . . . . . . . . . Shots Hit Robots 371 | 8 . 38 53 . . 103 . . 22 1 5 . 3 19 . 28 . . . 6 4 3 18 15 45 Core Hits 238 | 2 . 23 23 . . 52 . . 7 9 . . 8 12 . 23 3 . . 2 1 29 5 17 22 Critical Kills 2 | . . . 1 . . . . . . . . . . . . . . . . . . . . . 1 Critical Parts Destroyed . | . . . . . . . . . . . . . . . . . . . . . . . . . . Critical Strikes 31 | . . . 3 . . 11 . . 3 . . . . 2 . 1 . . . . . . 1 2 8 Meltdown 1 | . . . . . . . . . . . . . . . . . . . . . . . . . 1 Destroy 2 | . . . 2 . . . . . . . . . . . . . . . . . . . . . . Blast 7 | . . . . . . 7 . . . . . . . . . . . . . . . . . . . Sever 16 | . . . . . . . . . 3 . . . . 2 . 1 . . . . . . 1 2 7 Impale 5 | . . . 1 . . 4 . . . . . . . . . . . . . . . . . . . Melee Attacks 486 | . . . 33 . . 51 2 . 64 8 8 . 8 37 . 80 3 . . 16 43 36 26 17 54 Impact 10 | . . . 10 . . . . . . . . . . . . . . . . . . . . . . Slashing 386 | . . . . . . . . . 50 8 8 . 8 37 . 80 3 . . 16 43 36 26 17 54 Piercing 90 | . . . 23 . . 51 2 . 14 . . . . . . . . . . . . . . . . Sneak Attacks 37 | . . . . . . 12 . . 8 . . . . 5 . 4 . . . 1 2 1 . 2 2 Combat Hostiles 2 | . . . . . . . . . . . . . . . . 1 . . . 1 . . . . . Follow-up Attacks . | . . . . . . . . . . . . . . . . . . . . . . . . . . Damage Inflicted 23734 | 81 . 644 1772 . . 3994 . . 1541 656 412 . 671 1993 . 2965 289 . . 571 304 2564 1181 1614 2482 Guns 1556 | 81 . 618 500 . . 266 . . . . . . . . . . . . . . . . 91 . . Cannons 2693 | . . . . . . 2283 . . . . . . . . . . . . . . . . . 56 354 Explosions 7212 | . . . 225 . . 279 . . . 656 . . 624 709 . 1391 289 . . . . 2337 . 702 . Melee 12236 | . . . 1047 . . 1156 . . 1541 . 412 . 47 1284 . 1574 . . . 571 304 227 1090 856 2127 Ramming 37 | . . 26 . . . 10 . . . . . . . . . . . . . . . . . . 1 Kinetic 2986 | 81 . 389 201 . . 2315 . . . . . . . . . . . . . . . . . . . Thermal 1567 | . . 229 299 . . . . . . . . . . . . 444 . . . . . 185 . 56 354 Explosive 6583 | . . . 225 . . 279 . . . 656 . . 624 709 . 947 289 . . . . 2152 . 702 . Electromagnetic 234 | . . . . . . 234 . . . . . . . . . . . . . . . . . . . Impact 381 | . . . 381 . . . . . . . . . . . . . . . . . . . . . . Slashing 9850 | . . . . . . . . . 1358 . 412 . 47 1284 . 1574 . . . 571 304 227 1090 856 2127 Piercing 2005 | . . . 666 . . 1156 . . 183 . . . . . . . . . . . . . . . . Entropic 91 | . . . . . . . . . . . . . . . . . . . . . . . 91 . . Highest Corruption 21 | . . . . . . 7 7 7 . . . . . . . 4 1 1 1 1 1 2 21 3 5 Average Corruption 3 | . . . . . . 3 7 7 . . . . . . . 2 1 1 1 1 1 1 15 2 1 Corruption Purged 8 | . . . . . . . . . . . . . . . . 5 . . . . . . . . 3 Corruption Blocked . | . . . . . . . . . . . . . . . . . . . . . . . . . . Effects 57 | . . . . . . 15 3 . . . . . . . . 3 1 . 1 1 1 11 9 10 2 Message Errors 13 | . . . . . . 2 1 . . . . . . . . 1 1 . . . . 4 2 2 . Matter Fused 12 | . . . . . . 2 1 . . . . . . . . 1 . . . . . 2 2 4 . Heat Flow Errors 9 | . . . . . . 2 . . . . . . . . . 1 . . . 1 . 1 2 1 1 Energy Discharges 6 | . . . . . . 2 . . . . . . . . . . . . 1 . . . 2 . 1 Parts Rejected 2 | . . . . . . 2 . . . . . . . . . . . . . . . . . . . Parts Fused 1 | . . . . . . . . . . . . . . . . . . . . . . . . 1 . Data Loss (minor) 8 | . . . . . . 1 1 . . . . . . . . . . . . . . 3 1 2 . Data Loss (major) 3 | . . . . . . 1 . . . . . . . . . . . . . . 1 1 . . . Misfires 1 | . . . . . . 1 . . . . . . . . . . . . . . . . . . . Alerts 1 | . . . . . . 1 . . . . . . . . . . . . . . . . . . . Weapon Failures 1 | . . . . . . 1 . . . . . . . . . . . . . . . . . . . Overload Shots . | . . . . . . . . . . . . . . . . . . . . . . . . . . Overflow Damage 2082 | . . . 79 . . 221 . . 203 28 77 . 22 276 . 376 . . . 198 71 69 65 294 103 Projectiles 86 | . . . . . . 45 . . . . . . . . . . . . . . . . . . 41 Explosions 324 | . . . . . . 13 . . . 28 . . 15 55 . 100 . . . . . 69 . 44 . Melee 1672 | . . . 79 . . 163 . . 203 . 77 . 7 221 . 276 . . . 198 71 . 65 250 62 Knockbacks 16 | . . . 1 . . 15 . . . . . . . . . . . . . . . . . . . Impact 2 | . . . 1 . . 1 . . . . . . . . . . . . . . . . . . . Kinetic 14 | . . . . . . 14 . . . . . . . . . . . . . . . . . . . Secondary . | . . . . . . . . . . . . . . . . . . . . . . . . . . Self-Inflicted Damage 115 | . . . 28 . . 32 . . . . . . . . . . . . . . . 55 . . . Shots 3 | . . . 1 . . 1 . . . . . . . . . . . . . . . 1 . . . Rammed 9 | . . 5 . . . 3 . . . . . . . . . . . . . . . . . . 1 Targets Rammed 9 | . . 5 . . . 3 . . . . . . . . . . . . . . . . . . 1 Kicked . | . . . . . . . . . . . . . . . . . . . . . . . . . . Crushed . | . . . . . . . . . . . . . . . . . . . . . . . . . . Highest Temperature 252 | . . 252 . . . 218 112 6 21 16 56 36 72 34 . 222 10 . . 182 7 227 223 227 205 Average Temperature 53 | . . 95 . . . 42 89 6 12 12 34 14 32 17 . 40 7 . . 86 4 32 110 74 35 Received Heat Transfer 1331 | . . 40 209 . . 736 . . . . 18 . . . . 12 . . . 37 21 42 . 18 198 Effects 1 | . . 1 . . . . . . . . . . . . . . . . . . . . . . . Energy Bleed 1 | . . 1 . . . . . . . . . . . . . . . . . . . . . . . Siege Activations . | . . . . . . . . . . . . . . . . . . . . . . . . . . Martial Activations . | . . . . . . . . . . . . . . . . . . . . . . . . . . Shielding Activations . | . . . . . . . . . . . . . . . . . . . . . . . . . . Robots Disrupted . | . . . . . . . . . . . . . . . . . . . . . . . . . . Combat Hostiles . | . . . . . . . . . . . . . . . . . . . . . . . . . . Robots Corrupted 1 | . . . 1 . . . . . . . . . . . . . . . . . . . . . . Combat Hostiles 1 | . . . 1 . . . . . . . . . . . . . . . . . . . . . . Parts Fried 1 | . . . . . . 1 . . . . . . . . . . . . . . . . . . . Impact Corruptions 3 | . . . 3 . . . . . . . . . . . . . . . . . . . . . . Robots Melted 1 | . . . . . . . . . . . . . . . . . . . . . . . . . 1 Combat Hostiles . | . . . . . . . . . . . . . . . . . . . . . . . . . . Parts Melted 10 | . . 2 . . . . . . . . . . . . . . . . . . . . . 1 7 Heat Transferred 1463 | . . 407 398 . . . . . . . . . . . . 250 . . . . . 75 . 37 296 Parts Sabotaged . | . . . . . . . . . . . . . . . . . . . . . . . . . . Parts Stolen . | . . . . . . . . . . . . . . . . . . . . . . . . . . Parts Stripped . | . . . . . . . . . . . . . . . . . . . . . . . . . . Power Chain Reactions . | . . . . . . . . . . . . . . . . . . . . . . . . . . Alert | -11 -10 -10 -10 -8 -8 -6 -6 -6 -5 -5 -5 -5 -4 -4 -4 -4 -4 -4 -4 -3 -3 -3 -3 -2 -2 ------- Run | Yrd Mat Min Sub Rec Scr Fac Low Low Fac Upp Upp War Pro Fac Was Fac Upp Upp Zhi Pro Res Arm Lab Res Tes Maximum Alert Level 3 | . . 1 . . . 1 . . . . . . . 2 1 3 . . . . . 3 . 1 . Low Security (%) 70 | 100 100 99 . 100 . 90 . . 100 . . . . . 34 9 . . . . 100 34 . 88 100 Level 1 4 | . . . . . . 9 . . . . . . . 20 65 2 . . . . . 5 . 11 . Level 2 12 | . . . . . . . . . . . . . . 79 . 55 . . . . . 2 . . . Level 3 12 | . . . . . . . . . . . . . . . . 32 . . . . . 57 . . . Level 4 . | . . . . . . . . . . . . . . . . . . . . . . . . . . Level 5 . | . . . . . . . . . . . . . . . . . . . . . . . . . . High Security . | . . . . . . . . . . . . . . . . . . . . . . . . . . Max Security . | . . . . . . . . . . . . . . . . . . . . . . . . . . Peak Influence 934 | 5 . 197 . 40 . 282 . . 102 . . . . 589 211 911 . . . . 150 934 . 235 173 Initial 394 | . . . . . . . . . 18 . . . . 394 196 140 . . . . 150 38 . . 101 Average 224 | . . 71 . 8 . 79 . . 44 . . . . 503 202 575 . . . . 58 530 . 64 80 Influence Increases 7792 | 5 . 428 150 90 . 861 . 30 468 165 60 . 210 756 15 1250 85 . . 10 463 1812 . 525 409 Destroy 0b10 Robot/C 2900 | . . 360 80 . . 440 . . . 140 . . 160 180 . 300 60 . . . . 680 . 240 260 Destroy 0b10 Robot/NC 210 | 5 . . . . . 70 . . 40 . . . . 20 . 25 . . . 10 10 15 . 10 5 Destroy Leader 534 | . . 50 10 . . 114 . . 8 10 . . 20 26 . 56 10 . . . 2 126 . 50 52 Allied During Kill 370 | . . 3 . . . . . . . . . . . . . . . . . . . 367 . . . Trap Triggered on 0b10 80 | . . . . . . . . . 50 . . . . . . . . . . . . 30 . . . Successful Hack 393 | . . . . . . 32 . . 60 . . . . 64 . 57 . . . . 94 27 . 24 35 Select Force Hacks 90 | . . . . 90 . . . . . . . . . . . . . . . . . . . . . Disable Machine 420 | . . 15 . . . 30 . . 15 . . . . 15 . 150 . . . . . 165 . . 30 Destroy Structure 755 | . . . . . . 40 . . 70 . . . . 76 . 182 . . . . 72 222 . 81 12 Advance Influence 450 | . . . . . . . . . . . . . . 300 . . . . . . 150 . . . . Partial Spotted 480 | . . . . . . 30 . . 75 . . . . 15 15 120 . . . . 45 105 . 60 15 Lose Combat Pursuer 1110 | . . . 60 . . 105 . 30 150 15 60 . 30 60 . 360 15 . . . 90 75 . 60 . Influence Decreases 7703 | 5 . 269 309 90 . 700 161 . 396 178 97 52 60 344 376 561 390 152 433 10 389 1034 852 344 501 Entered New Map 2590 | . . . 83 . . . 61 . 12 39 17 52 . 56 366 61 330 112 433 . . 36 852 . 80 Time Decay 3837 | 5 . 269 206 90 . 480 60 . 384 139 70 . 60 278 10 470 60 40 . 10 259 518 . 180 249 Lost Part 400 | . . . 20 . . 160 . . . . 10 . . . . 20 . . . . 10 40 . 30 110 Lost Ally 410 | . . . . . . 60 40 . . . . . . 10 . 10 . . . . . 290 . . . Purge Threat 466 | . . . . . . . . . . . . . . . . . . . . . 120 150 . 134 62 Squads Dispatched 79 | . . 1 . . . 13 . . 14 . . . . 6 . 17 . . . . 5 9 . 7 7 Investigation 38 | . . 1 . . . 4 . . 10 . . . . 3 . 11 . . . . 2 4 . 1 2 Extermination 18 | . . . . . . 4 . . 3 . . . . 1 . 2 . . . . 2 4 . 1 1 Reinforcement 18 | . . . . . . 4 . . 1 . . . . 2 . 2 . . . . 1 1 . 4 3 Assault 2 | . . . . . . . . . . . . . . . . 2 . . . . . . . . . Garrison 1 | . . . . . . 1 . . . . . . . . . . . . . . . . . . . Intercept 2 | . . . . . . . . . . . . . . . . . . . . . . . . 1 1 Searches Triggered . | . . . . . . . . . . . . . . . . . . . . . . . . . . Construction Impeded 1 | . . . . . . 1 . . . . . . . . . . . . . . . . . . . Haulers Reinforced 5 | . . . . . . 2 . . . . . . . 2 . 1 . . . . . . . . . Active Scanning Responses . | . . . . . . . . . . . . . . . . . . . . . . . . . . Cargo Convoy Interrupts 1 | . . . . . . 1 . . . . . . . . . . . . . . . . . . . Stealth | -11 -10 -10 -10 -8 -8 -6 -6 -6 -5 -5 -5 -5 -4 -4 -4 -4 -4 -4 -4 -3 -3 -3 -3 -2 -2 --------- Run | Yrd Mat Min Sub Rec Scr Fac Low Low Fac Upp Upp War Pro Fac Was Fac Upp Upp Zhi Pro Res Arm Lab Res Tes Distress Signals 14 | . . . . . . 2 . . 1 . . . . . . 4 . . . . 2 2 . 2 1 Communications Jammed . | . . . . . . . . . . . . . . . . . . . . . . . . . . Distress Signals . | . . . . . . . . . . . . . . . . . . . . . . . . . . Times Spotted 353 | . . 20 21 . . 58 4 1 20 4 5 . 12 11 5 53 1 . . 5 24 47 1 30 31 Peak Tracking Total 17 | . . 5 4 . . 17 4 7 7 2 3 . 5 4 5 9 1 . . 5 14 8 1 9 11 Tactical Retreats 41 | . . . 2 . . 3 . 1 5 1 3 . 1 2 . 9 1 . . . 2 7 . 3 1 ECM-based Alert Blocks 14 | . . . . . . . . . . . . . . . . . . . . . . 12 . . 2 Traps | -11 -10 -10 -10 -8 -8 -6 -6 -6 -5 -5 -5 -5 -4 -4 -4 -4 -4 -4 -4 -3 -3 -3 -3 -2 -2 ------- Run | Yrd Mat Min Sub Rec Scr Fac Low Low Fac Upp Upp War Pro Fac Was Fac Upp Upp Zhi Pro Res Arm Lab Res Tes Traps Triggered 5 | . 1 . . . . 1 . . 1 . . . . 1 . . . . . . . . . . 1 Indirectly . | . . . . . . . . . . . . . . . . . . . . . . . . . . Trap Hack Attempts . | . . . . . . . . . . . . . . . . . . . . . . . . . . Triggered . | . . . . . . . . . . . . . . . . . . . . . . . . . . Disarmed . | . . . . . . . . . . . . . . . . . . . . . . . . . . Reprogrammed 25 | . . . . . . . . . 18 . . . . . . . . . . . . 7 . . . Reused 8 | . . . . . . . . . 5 . . . . . . . . . . . . 3 . . . Traps Extracted 14 | . . . . . . . . . 6 . . 8 . . . . . . . . . . . . . Installed 2 | . . . . . . . . . 2 . . . . . . . . . . . . . . . . Triggered 8 | . . . . . . . . . 5 . . . . . . . . . . . . 3 . . . Most Traps Carried 8 | . . . . . . . . . 6 4 4 8 8 8 8 8 8 8 8 8 8 8 8 8 8 Machines | -11 -10 -10 -10 -8 -8 -6 -6 -6 -5 -5 -5 -5 -4 -4 -4 -4 -4 -4 -4 -3 -3 -3 -3 -2 -2 ---------- Run | Yrd Mat Min Sub Rec Scr Fac Low Low Fac Upp Upp War Pro Fac Was Fac Upp Upp Zhi Pro Res Arm Lab Res Tes Machines Disabled 34 | . . 1 3 . . 2 . . 1 . . 1 . 1 . 10 . . . . . 11 2 . 2 Max in Single Turn 5 | . . 1 2 . . 1 . . 1 . . 1 . 1 . 5 . . . . . 1 1 . 1 Garrison Access 6 | . . . . . . 1 . . 1 . . . . 2 . 1 . . . . 1 . . . . Energy Cycler 1 | . . . . . . . . . . . . . . . . . . . . . . 1 . . . Machines Repaired 1 | . . . . . . 1 . . . . . . . . . . . . . . . . . . . Machines Dismantled . | . . . . . . . . . . . . . . . . . . . . . . . . . . Machines Sabotaged . | . . . . . . . . . . . . . . . . . . . . . . . . . . Overloaded Fab Kills . | . . . . . . . . . . . . . . . . . . . . . . . . . . Hacking | -11 -10 -10 -10 -8 -8 -6 -6 -6 -5 -5 -5 -5 -4 -4 -4 -4 -4 -4 -4 -3 -3 -3 -3 -2 -2 --------- Run | Yrd Mat Min Sub Rec Scr Fac Low Low Fac Upp Upp War Pro Fac Was Fac Upp Upp Zhi Pro Res Arm Lab Res Tes Machines Accessed 121 | . 1 3 1 3 3 10 2 . 19 . 1 5 . 11 . 22 . . 4 . 12 11 . 5 8 Terminals 46 | . 1 1 . . . 4 . . 9 . . . . 3 . 7 . . . . 6 7 . 5 3 Fabricators 12 | . . . . . . 1 . . 2 . . . . 1 . 3 . . . . 1 2 . . 2 Repair Stations 5 | . . . . . . . . . . . . . . . . 2 . . . . 1 1 . . 1 Recycling Units 24 | . . . . 3 . 3 . . 6 . . . . 4 . 7 . . . . . 1 . . . Scanalyzers 9 | . . . . . . 1 . . 1 . . . . 1 . 2 . . . . 2 . . . 2 Garrison Access 7 | . . . . . . 1 . . 1 . . . . 2 . 1 . . . . 2 . . . . Total Hacks 379 | . 3 5 3 4 10 28 5 . 54 . 1 7 . 31 . 75 . . 17 . 34 38 . 23 41 Successful 251 | . . 2 3 3 10 18 5 . 41 . 1 7 . 20 . 46 . . 17 . 19 26 . 11 22 Failed 128 | . 3 3 . 1 . 10 . . 13 . . . . 11 . 29 . . . . 15 12 . 12 19 Catastrophic 21 | . . . . . . 3 . . 3 . . . . 1 . 3 . . . . 4 3 . 3 1 Database Lockouts . | . . . . . . . . . . . . . . . . . . . . . . . . . . Manual 172 | . . 3 . 4 . 7 . . 33 . . . . 19 . 45 . . . . 8 29 1 15 8 Terminals 186 | . 3 3 . . . 15 . . 36 . . . . 14 . 34 . . . . 14 29 . 23 15 Fabricators 43 | . . . . . . 3 . . 8 . . . . 3 . 8 . . . . 8 5 . . 8 Repair Stations 18 | . . . . . . . . . . . . . . . . 9 . . . . 2 3 . . 4 Recycling Units 36 | . . . . 4 . 3 . . 7 . . . . 4 . 17 . . . . . 1 . . . Scanalyzers 42 | . . . . . . 6 . . 2 . . . . 7 . 6 . . . . 7 . . . 14 Garrison Access 9 | . . . . . . 1 . . 1 . . . . 3 . 1 . . . . 3 . . . . Terminal Hacks 106 | . . 2 3 . 10 5 5 . 16 . 1 7 . 3 . 9 . . 17 . 6 10 . 8 4 Record 21 | . . . 3 . 4 . 4 . . . . 5 . . . . . . 5 . . . . . . Part Schematic 12 | . . . . . . . . . 1 . . . . 1 . 2 . . 4 . 1 2 . 1 . Robot Analysis 11 | . . . . . 6 . . . . . . . . . . 1 . . 4 . . . . . . Prototype ID Bank 6 | . . . . . . . . . 1 . . . . . . 1 . . 4 . . . . . . Open Door 8 | . . 2 . . . . 1 . . . 1 2 . . . . . . . . . 1 . . 1 Branch Access Points 4 | . . . . . . 1 . . 1 . . . . . . 1 . . . . . . . 1 . Terminal Index 1 | . . . . . . 1 . . . . . . . . . . . . . . . . . . . Fabricator Index 3 | . . . . . . . . . 1 . . . . . . . . . . . 1 . . 1 . Alert Level 3 | . . . . . . . . . . . . . . 1 . . . . . . . 1 . . 1 Unreport Threat 5 | . . . . . . . . . . . . . . . . . . . . . 1 1 . 2 1 Locate Traps 15 | . . . . . . 2 . . 6 . . . . 1 . 1 . . . . 1 2 . 2 . Reprogram Traps 6 | . . . . . . . . . 3 . . . . . . . . . . . . 3 . . . Patrol Status 1 | . . . . . . . . . . . . . . . . . . . . . 1 . . . . Recall Extermination 1 | . . . . . . . . . 1 . . . . . . . . . . . . . . . . Recall Reinforcements 1 | . . . . . . . . . . . . . . . . . . . . . . . . 1 . Hauler Manifests 1 | . . . . . . . . . . . . . . . . 1 . . . . . . . . . Registered Components 2 | . . . . . . . . . 1 . . . . . . . . . . . . . . . 1 Registered Prototypes 2 | . . . . . . 1 . . 1 . . . . . . . . . . . . . . . . Zone Layout 3 | . . . . . . . . . . . . . . . . 2 . . . . 1 . . . . Fabricator Hacks 23 | . . . . . . 1 . . 5 . . . . 1 . 4 . . . . 5 3 . . 4 Network Status 4 | . . . . . . 1 . . 1 . . . . 1 . 1 . . . . . . . . . Load Schematic 13 | . . . . . . . . . 3 . . . . . . 3 . . . . 3 2 . . 2 Build 6 | . . . . . . . . . 1 . . . . . . . . . . . 2 1 . . 2 Repair Station Hacks 13 | . . . . . . . . . . . . . . . . 7 . . . . 1 3 . . 2 Scan Component 6 | . . . . . . . . . . . . . . . . 4 . . . . . 1 . . 1 Repair 5 | . . . . . . . . . . . . . . . . 3 . . . . . 1 . . 1 Refit 2 | . . . . . . . . . . . . . . . . . . . . . 1 1 . . . Recycling Unit Hacks . | . . . . . . . . . . . . . . . . . . . . . . . . . . Scanalyzer 25 | . . . . . . 5 . . 2 . . . . 3 . 5 . . . . 3 . . . 7 Insert Component 14 | . . . . . . 2 . . 1 . . . . 1 . 2 . . . . 3 . . . 5 Analyze 7 | . . . . . . . . . 1 . . . . 1 . 3 . . . . . . . . 2 Retrieve Study 4 | . . . . . . 3 . . . . . . . 1 . . . . . . . . . . . Garrison Access Hacks 6 | . . . . . . 1 . . 1 . . . . 2 . 1 . . . . 1 . . . . Seal Access 6 | . . . . . . 1 . . 1 . . . . 2 . 1 . . . . 1 . . . . Unauthorized Hacks 78 | . . . . 3 . 6 . . 17 . . . . 11 . 20 . . . . 3 10 . 3 5 Terminals 39 | . . . . . . 1 . . 8 . . . . 5 . 9 . . . . 2 7 . 3 4 Track 3 | . . . . . . . . . 1 . . . . . . . . . . . 1 . . . 1 Assimilate 4 | . . . . . . . . . . . . . . 1 . 1 . . . . . 1 . 1 . Botnet 17 | . . . . . . . . . 4 . . . . 2 . 5 . . . . 1 3 . 1 1 Operators 5 | . . . . . . . . . 1 . . . . 1 . 1 . . . . . 1 . . 1 Skim 10 | . . . . . . 1 . . 2 . . . . 1 . 2 . . . . . 2 . 1 1 Fabricators 15 | . . . . . . 2 . . 3 . . . . 2 . 4 . . . . 1 2 . . 1 Report 2 | . . . . . . 1 . . . . . . . 1 . . . . . . . . . . . Prioritize 5 | . . . . . . . . . 1 . . . . . . 1 . . . . 1 1 . . 1 Haulers 2 | . . . . . . 1 . . . . . . . 1 . . . . . . . . . . . Recompile 6 | . . . . . . . . . 2 . . . . . . 3 . . . . . 1 . . . Repair Stations . | . . . . . . . . . . . . . . . . . . . . . . . . . . Recycling Units 24 | . . . . 3 . 3 . . 6 . . . . 4 . 7 . . . . . 1 . . . Mask 2 | . . . . . . . . . . . . . . 1 . 1 . . . . . . . . . Tunnel 3 | . . . . 3 . . . . . . . . . . . . . . . . . . . . . Fedlink 18 | . . . . . . 3 . . 6 . . . . 3 . 6 . . . . . . . . . Scraphulk 1 | . . . . . . . . . . . . . . . . . . . . . . 1 . . . Scanalyzers . | . . . . . . . . . . . . . . . . . . . . . . . . . . Garrison Access . | . . . . . . . . . . . . . . . . . . . . . . . . . . Data Cores Recovered 1 | . . . . . . . . . 1 . . . . . . . . . . . . . . . . Used . | . . . . . . . . . . . . . . . . . . . . . . . . . . Hacking Detections 69 | . 1 1 . 1 . 5 . . 11 . . . . 5 . 14 . . . . 10 9 . 5 7 Full Trace Events 11 | . . . . . . . . . 2 . . . . . . 2 . . . . 2 2 . 1 2 Feedback Events 1 | . . . . . . . . . . . . . . . . 1 . . . . . . . . . Hackware Fried 1 | . . . . . . . . . . . . . . . . 1 . . . . . . . . . Feedback Blocked . | . . . . . . . . . . . . . . . . . . . . . . . . . . Robot Schematics Acquired . | . . . . . . . . . . . . . . . . . . . . . . . . . . Robots Built . | . . . . . . . . . . . . . . . . . . . . . . . . . . Authchips . | . . . . . . . . . . . . . . . . . . . . . . . . . . Time . | . . . . . . . . . . . . . . . . . . . . . . . . . . Total Robot Build Rating . | . . . . . . . . . . . . . . . . . . . . . . . . . . Part Schematics Acquired 15 | . . . . . . . . . 2 . . . . 1 . 3 . . 4 . 1 2 . 1 1 Parts Built 6 | . . . . . . . . . 1 . . . . . . . . . . . 2 1 . . 2 Authchips 4 | . . . . . . . . . 1 . . . . . . . . . . . 2 1 . . . Time 362 | . . . . . . . . . 76 . . . . . . . . . . . 52 68 . . 166 Total Part Build Rating 43 | . . . . . . . . . 5 . . . . . . . . . . . 12 8 . . 18 Part Studies Acquired 4 | . . . . . . 3 . . . . . . . 1 . . . . . . . . . . . Parts Repaired 5 | . . . . . . . . . . . . . . . . 3 . . . . . 1 . . 1 Time 247 | . . . . . . . . . . . . . . . . 209 . . . . . 26 . . 12 Parts Recycled . | . . . . . . . . . . . . . . . . . . . . . . . . . . Recycled Matter . | . . . . . . . . . . . . . . . . . . . . . . . . . . Retrieved Matter . | . . . . . . . . . . . . . . . . . . . . . . . . . . Retrieved Components . | . . . . . . . . . . . . . . . . . . . . . . . . . . Parts Scanalyzed 4 | . . . . . . . . . 1 . . . . 1 . . . . . . 1 . . . 1 Part Schematics Acquired 3 | . . . . . . . . . 1 . . . . . . 1 . . . . . . . . 1 Parts Damaged 1 | . . . . . . . . . . . . . . . . . . . . . 1 . . . . Bothacking | -11 -10 -10 -10 -8 -8 -6 -6 -6 -5 -5 -5 -5 -4 -4 -4 -4 -4 -4 -4 -3 -3 -3 -3 -2 -2 ------------ Run | Yrd Mat Min Sub Rec Scr Fac Low Low Fac Upp Upp War Pro Fac Was Fac Upp Upp Zhi Pro Res Arm Lab Res Tes Used RIF Installer . | . . . . . . . . . . . . . . . . . . . . . . . . . . Robots Hacked . | . . . . . . . . . . . . . . . . . . . . . . . . . . Non-combat . | . . . . . . . . . . . . . . . . . . . . . . . . . . Combat . | . . . . . . . . . . . . . . . . . . . . . . . . . . Robot Hacks Applied . | . . . . . . . . . . . . . . . . . . . . . . . . . . Relay Couplers Released . | . . . . . . . . . . . . . . . . . . . . . . . . . . Fabnet Peak Effective % . | . . . . . . . . . . . . . . . . . . . . . . . . . . Robots Rewired 8 | . . . . . . . . . . . . . . . . . . . . . . 8 . . . Allies Hacked 8 | . . . . . . . . . . . . . . . . 1 . . . . . 7 . . . Hacks Repelled . | . . . . . . . . . . . . . . . . . . . . . . . . . . Allies | -11 -10 -10 -10 -8 -8 -6 -6 -6 -5 -5 -5 -5 -4 -4 -4 -4 -4 -4 -4 -3 -3 -3 -3 -2 -2 -------- Run | Yrd Mat Min Sub Rec Scr Fac Low Low Fac Upp Upp War Pro Fac Was Fac Upp Upp Zhi Pro Res Arm Lab Res Tes Total Allies 25 | . . 1 . . . . 2 . . . . . . 1 . 1 . . . . . 20 . . . Largest Group 15 | . . 1 . . . . 2 . . . . . . 1 . 1 . . . . . 15 . . . Highest-Rated Group 727 | . . 31 . . . . 51 . . . . . . 26 . 26 . . . . . 727 . . . Highest-Rated Ally 139 | . . 31 . . . . 31 . . . . . . 26 . 26 . . . . . 139 . . . Total Orders 2 | . . . . . . . . . . . . . . 2 . . . . . . . . . . . STAY 1 | . . . . . . . . . . . . . . 1 . . . . . . . . . . . FOLLOW 1 | . . . . . . . . . . . . . . 1 . . . . . . . . . . . Ally Attacks 162 | . . 4 . . . 8 1 . . . . . . . . . . . . . . 149 . . . Total Damage 5244 | . . 61 . . . . . . . . . . . . . . . . . . . 5183 . . . Kills 27 | . . 1 . . . . . . . . . . . . . . . . . . . 26 . . . Allies Corrupted 3 | . . . . . . . . . . . . . . . . . . . . . . 3 . . . Allies Melted . | . . . . . . . . . . . . . . . . . . . . . . . . . . Intel | -11 -10 -10 -10 -8 -8 -6 -6 -6 -5 -5 -5 -5 -4 -4 -4 -4 -4 -4 -4 -3 -3 -3 -3 -2 -2 ------- Run | Yrd Mat Min Sub Rec Scr Fac Low Low Fac Upp Upp War Pro Fac Was Fac Upp Upp Zhi Pro Res Arm Lab Res Tes Active Infowar (turns) 10885 | 32 76 . . . 836 1684 126 8 927 437 141 576 136 613 29 1193 121 93 41 282 664 1430 311 462 667 Optics 9941 | . . . . . . 1684 126 8 927 437 141 576 136 613 29 1193 121 93 41 282 664 1430 311 462 667 Sensors 6833 | . . . . . . . . . 794 437 141 561 136 613 26 1102 121 93 38 282 664 1359 1 54 411 Structural 2678 | . . . . . . 1589 120 . 530 401 38 . . . . . . . . . . . . . . Seismic 1186 | 32 76 . . . 836 242 . . . . . . . . . . . . . . . . . . . Cloaking 2 | . . . . . . . . . . . . . . . . . . . . . . . . . 2 ECM 206 | . . . . . . . . . . . . . . . . . . . . . . 84 . . 122 Robot Analysis Total 11 | . . . . . 6 . . . . . . . . . . 1 . . 4 . . . . . . Derelict Logs Recovered 18 | . . 2 2 . 5 . 1 . . 1 2 . 1 . . . 2 2 . . . . . . . Drone Launches 8 | . . . . . . 8 . . . . . . . . . . . . . . . . . . . Drone Recoveries . | . . . . . . . . . . . . . . . . . . . . . . . . . . Exploration | -11 -10 -10 -10 -8 -8 -6 -6 -6 -5 -5 -5 -5 -4 -4 -4 -4 -4 -4 -4 -3 -3 -3 -3 -2 -2 ------------- Run | Yrd Mat Min Sub Rec Scr Fac Low Low Fac Upp Upp War Pro Fac Was Fac Upp Upp Zhi Pro Res Arm Lab Res Tes Turns Passed 15367 | 116 104 1310 1840 414 1636 1690 126 8 927 437 141 576 136 613 29 1193 121 93 41 282 664 1430 311 462 667 Spaces Moved 19509 | 56 57 745 961 270 953 700 368 30 2009 1018 461 1078 396 1482 112 2441 495 263 147 501 1358 1917 312 636 743 Core 132 | 3 . . . . 92 . . . 2 . . . . . . . . . . . . . 4 8 23 Treads 1888 | 53 57 745 448 . 19 566 . . . . . . . . . . . . . . . . . . . Legs . | . . . . . . . . . . . . . . . . . . . . . . . . . . Wheels 1625 | . . . 513 270 842 . . . . . . . . . . . . . . . . . . . . Hover 219 | . . . . . . . . . . . . 1 . . . . . . . . . . . 122 96 Flight 15645 | . . . . . . 134 368 30 2007 1018 461 1077 396 1482 112 2441 495 263 147 501 1358 1917 308 506 624 Fastest Speed 5 | 50 160 160 110 150 50 26 14 14 5 25 15 15 15 12 21 6 21 21 21 6 21 12 25 25 20 Average Speed 53 | 154 160 160 169 150 164 172 25 24 24 25 24 42 24 20 21 22 21 21 21 20 29 21 56 40 42 Slowest Speed 480 | 160 160 160 480 150 345 246 26 26 250 25 25 100 25 25 21 91 21 21 21 21 90 25 365 170 450 Overloaded Moves 148 | . . . . . . 1 12 3 11 . 13 3 9 6 . 37 . . . 31 . 22 . . . Propulsion Burnouts . | . . . . . . . . . . . . . . . . . . . . . . . . . . Robots Hopped 27 | . . . . . . . 2 . 2 . . 1 . 2 . 1 . . . . 7 3 1 8 . Potential Cave-ins 2 | . . . . . . . . . . . . . . . . 2 . . . . . . . . . Cave-ins Triggered . | . . . . . . . . . . . . . . . . . . . . . . . . . . Teleports 2 | . . . . . . . . . . . . . . . . . . . . . . . . 1 1 Exploration Rate (%) 54 | 5 15 100 49 63 63 19 69 8 55 95 71 94 66 36 76 46 66 48 63 75 31 64 95 19 27 Regions Visited 25 Branch Regions 17 Pre-discovered Areas 14 | . . . 2 3 1 1 . . . . . 1 . . . . 2 1 3 . . . . . . Known Exits Taken 18 | . . . 1 . . 1 1 1 1 1 1 1 1 . . 1 1 1 1 1 1 1 1 1 . Unknown Exits Taken 5 | 1 1 1 . 1 1 . . . . . . . . . . . . . . . . . . . . Scrap Searched 17 | . . 3 . . 4 . . . . 4 1 . 1 . . . . 2 . 2 . . . . . Spaces Dug 196 | . . . . . . 7 2 . 35 5 2 . 5 16 . 41 3 . . 8 38 27 . 3 4 Terrain Destroyed 548 | . . . 25 . . 39 2 . 35 37 2 1 45 40 . 131 8 . . 8 38 105 1 27 4 Melee 182 | . . . . . . 7 2 . 35 5 2 . 5 16 . 35 3 . . 8 34 24 . 3 3 Projectile 39 | . . . . . . 20 . . . . . 1 . . . 9 . . . . 4 3 1 . 1 AOE 327 | . . . 25 . . 12 . . . 32 . . 40 24 . 87 5 . . . . 78 . 24 . Terrain Rammed . | . . . . . . . . . . . . . . . . . . . . . . . . . . Walls Destroyed . | . . . . . . . . . . . . . . . . . . . . . . . . . . Machines Disabled . | . . . . . . . . . . . . . . . . . . . . . . . . . . Actions | -11 -10 -10 -10 -8 -8 -6 -6 -6 -5 -5 -5 -5 -4 -4 -4 -4 -4 -4 -4 -3 -3 -3 -3 -2 -2 --------- Run | Yrd Mat Min Sub Rec Scr Fac Low Low Fac Upp Upp War Pro Fac Was Fac Upp Upp Zhi Pro Res Arm Lab Res Tes Total 23500 | 75 71 809 1076 280 1028 1019 395 29 2345 1182 474 1191 417 1720 117 2980 504 300 157 656 1555 2844 412 796 1068 Wait 2518 | 1 . 3 13 3 . 68 25 . 195 151 3 66 11 194 . 386 4 36 . 140 147 813 15 69 175 Move 19432 | 55 56 744 960 269 952 699 363 29 2004 1017 460 1075 395 1478 111 2438 494 262 146 500 1343 1911 309 619 743 Hop 26 | . . . . . . . 2 . 2 . . 1 . 2 . 1 . . . . 7 2 1 8 . Pick Up 213 | 7 7 10 17 4 45 19 1 . 16 . 1 6 . 1 1 13 . 1 3 . 3 6 18 17 17 Fast Attach 127 | 4 3 5 5 . 4 12 . . 10 . . 15 . 2 2 10 . . 2 . 3 6 10 19 15 Attach 89 | 3 . 1 4 2 3 27 1 . 4 . 1 2 . 1 . 8 . . 2 . 2 3 2 12 11 Detach 33 | . . . 2 . 1 2 . . 1 . . . . . . 7 . . . . 1 1 1 7 10 Swap 89 | . . . 7 . 4 18 . . 13 3 1 4 . . . 12 2 . . . . 12 . 8 5 Drop 222 | . 5 13 6 2 19 31 1 . 19 . . 21 . 1 3 16 . 1 4 . 5 7 26 16 26 Fire 206 | 5 . 28 29 . . 88 . . . 3 . 1 3 4 . 9 1 . . . 1 16 4 4 10 Melee 486 | . . . 33 . . 51 2 . 64 8 8 . 8 37 . 80 3 . . 16 43 36 26 17 54 Ram 1 | . . . . . . . . . . . . . . . . . . . . . . . . . 1 Kick . | . . . . . . . . . . . . . . . . . . . . . . . . . . Crush 8 | . . 5 . . . 3 . . . . . . . . . . . . . . . . . . . Escape Stasis 16 | . . . . . . . . . 15 . . . . . . . . . . . . . . . 1 Rewire 31 | . . . . . . . . . . . . . . . . . . . . . . 31 . . . Trap 2 | . . . . . . . . . 2 . . . . . . . . . . . . . . . . Miscellaneous 1 | . . . . . . 1 . . . . . . . . . . . . . . . . . . . Route ------- -11/Scrapyard -10/Materials -10/Mines (discovered 3 exits: [*Mat x2] / *Sub) -10/Subcaves (discovered 2 exits: Mat / *Rec) -8/Recycling -8/Scraptown -6/Factory (discovered 4 exits: *Low x2 / *Ext x2) -6/Lower Caves -6/Lower Caves -5/Factory (discovered 4 exits: *Fac x2 / *Upp x2) -5/Upper Caves -5/Upper Caves (discovered 2 exits: *Fac / *War) -5/Warlord -4/Proximity Caves -4/Factory (discovered 2 exits: Res / Upp) -4/Waste -4/Factory (discovered 2 exits: *Upp x2) -4/Upper Caves -4/Upper Caves (discovered 2 exits: Res / *Zhi) -4/Zhirov -3/Proximity Caves -3/Research (discovered 3 exits: Res x2 / *Arm) -3/Armory -3/Lab -2/Research (discovered 3 exits: [*Acc] / *Tes x2) -2/Testing History --------- Turn | Location | Event 11 | -11/Scrapyard | Discovered new exit (range 15) 117 | -11/Scrapyard | Entered Materials 171 | -10/Materials | Discovered new exit (range 11) 221 | -10/Materials | Entered Mines 224 | -10/Mines | Received a Mining Laser from a helpful Derelict 308 | -10/Mines | Build established: Mutant 339 | -10/Mines | Found the Drone Emporium 347 | -10/Mines | Found Prototype Device 347 | -10/Mines | Identified Bomb Drone Bay 687 | -10/Mines | Learned Materials emergency access door positions 698 | -10/Mines | Discovered new exit (range 10) 787 | -10/Mines | Met a Derelict shopkeep closing up shop 1101 | -10/Mines | Discovered new exit (range 10) 1518 | -10/Mines | Discovered new exit (range 8) 1531 | -10/Mines | Entered Subcaves 1532 | -10/Subcaves | Approached by a straggling Scientist 1532 | -10/Subcaves | Identified exit to Recycling 1603 | -10/Subcaves | Ambushed by Subdwellers from Twisted Machinery 1724 | -10/Subcaves | Learned location of Zion (-6) 2012 | -10/Subcaves | Visited Clippyterm 2022 | -10/Subcaves | Learned location of Section 7 (-2) 2499 | -10/Subcaves | Core integrity fell below 50% 2702 | -10/Subcaves | A swath of the cavern ceiling suddenly collapsed 2704 | -10/Subcaves | Shifting Twisted Machinery released Battle Cannon 2713 | -10/Subcaves | Shifting Twisted Machinery released Sub. Laser 2938 | -10/Subcaves | Ambushed by Subdwellers from Twisted Machinery 3157 | -10/Subcaves | Identified exit to Materials 3371 | -10/Subcaves | Entered Recycling 3749 | -8/Recycling | Scanned before Scraplab entrance 3770 | -8/Recycling | Entered Scraplab 3782 | -8/Recycling | Discovered new exit (range 3) 3785 | -8/Recycling | Entered Scraptown 3988 | -8/Scraptown | Visited UFD Registry 3988 | -8/Scraptown | Registered with UFD as "Alphalever" 4009 | -8/Scraptown | Visited TADAMA 4027 | -8/Scraptown | Visited Cyclists 4039 | -8/Scraptown | Visited Shadow of the Wyrm 4089 | -8/Scraptown | Scanned Subdweller tech in exchange for log data 4092 | -8/Scraptown | Learned Research terminal intel 4093 | -8/Scraptown | Learned Factory non-interactive machine intel 4095 | -8/Scraptown | Learned location of Quarantine (-3) 4096 | -8/Scraptown | Learned location of 1 exit from Research 4162 | -8/Scraptown | Visited SPCMW 4185 | -8/Scraptown | Visited CR-KLE's Repair Center 4195 | -8/Scraptown | Visited The Evicted 4232 | -8/Scraptown | Visited CPS Storage 4279 | -8/Scraptown | Visited Abandonware Association 4291 | -8/Scraptown | Learned abandonware demo "OVRCLOCK.EXE" 4296 | -8/Scraptown | Learned abandonware demo "SHUTEYE.EXE" 4330 | -8/Scraptown | Visited Scrap Suit Storage 4351 | -8/Scraptown | Visited Observation Area 4393 | -8/Scraptown | Delivered Scrap Shield to a Scientist 4469 | -8/Scraptown | Visited Derelict Rescue Squad 4478 | -8/Scraptown | Found DRS Beacon 4505 | -8/Scraptown | Visited DA-N13 Charitable Foundation 4544 | -8/Scraptown | Found DCF Scrap (27 items) 4626 | -8/Scraptown | Visited Analyses Database 4658 | -8/Scraptown | Visited Botcube Research 4664 | -8/Scraptown | Found Botcube 4690 | -8/Scraptown | Visited Research Penetration Think Tank 4724 | -8/Scraptown | Visited Cartography Club 4773 | -8/Scraptown | Found Deep Structural Scanner 5091 | -8/Scraptown | Build established: Hauler-Mutant 5281 | -8/Scraptown | Met Optimus 5281 | -8/Scraptown | Accepted into 0bPrime 5417 | -8/Scraptown | Discovered new exit (range 3) 5421 | -8/Scraptown | Entered Factory 5421 | -6/Factory | Evolved 8 slots: Propulsion x2, Utility x6 5422 | -6/Factory | Loaded intel: 230 non-interactive machine locations 5710 | -6/Factory | Build established: Derelict-Mutant 5973 | -6/Factory | Identified exit to Lower Caves 5973 | -6/Factory | Identified exit to Extension 6689 | -6/Factory | Loaded intel: 8 recycling unit locations 6708 | -6/Factory | Build established: Mutant 6708 | -6/Factory | Lost 3 parts (1n1u1w) 6873 | -6/Factory | Found Hvy. Reflective Plating 6917 | -6/Factory | Learned location of Protoforge (-2) 7016 | -6/Factory | Garrison activated, responded to threat 7025 | -6/Factory | Cargo convoy interrupted 7059 | -6/Factory | Core integrity fell below 50% 7060 | -6/Factory | Found Prototype Processor 7060 | -6/Factory | Identified Exp. Signal Interpreter 7063 | -6/Factory | Lost 8 allies 7078 | -6/Factory | Core integrity fell below 20% 7102 | -6/Factory | Lost 10 parts (2p3n3u2w) 7111 | -6/Factory | Entered Lower Caves 7113 | -6/Lower Caves | UFD Scientist delivered a prototype 7115 | -6/Lower Caves | Found Prototype Protection 7122 | -6/Lower Caves | Entered an active Warlord outpost 7123 | -6/Lower Caves | Learned location of 1 exit from Factory 7125 | -6/Lower Caves | A Commander dispatched an escort 7141 | -6/Lower Caves | Encountered a Warlord checkpoint 7216 | -6/Lower Caves | Discovered new exit (range 11) 7236 | -6/Lower Caves | Identified exit to Lower Caves 7237 | -6/Lower Caves | Entered another Lower Caves area 7243 | -6/Lower Caves | Discovered new exit (range 9) 7244 | -6/Lower Caves | Identified exit to Factory 7245 | -6/Lower Caves | Entered Factory 7245 | -5/Factory | Evolved 2 slots: Propulsion x1, Utility x1 7246 | -5/Factory | Identified exit to Factory 7263 | -5/Factory | Spotted B-75 Beast 7307 | -5/Factory | Build established: Hacker-Sprinter 7390 | -5/Factory | Loaded intel: 8 recycling unit locations 7452 | -5/Factory | Discovered new exit (range 12) 7493 | -5/Factory | Identified exit to Upper Caves 7561 | -5/Factory | Found Prototype Launcher 7563 | -5/Factory | Found Prototype Launcher 7645 | -5/Factory | Discovered exit to Factory (range 22) 7789 | -5/Factory | Build established: Hacker-Scout 7921 | -5/Factory | Identified Tesla Bomb Launcher (x2) 7943 | -5/Factory | Found Prototype Launcher 7943 | -5/Factory | Identified Mni. Smartbomb Launcher 7958 | -5/Factory | Fabricated Exp. Utility Shielding? 8172 | -5/Factory | Entered Upper Caves 8421 | -5/Upper Caves | Learned Factory emergency access door positions 8488 | -5/Upper Caves | Discovered new exit (range 22) 8609 | -5/Upper Caves | Identified exit to Upper Caves 8609 | -5/Upper Caves | Entered another Upper Caves area 8612 | -5/Upper Caves | Discovered exit to Factory (range 21) 8648 | -5/Upper Caves | Attracted the attention of an 0b10 checkpoint 8654 | -5/Upper Caves | Learned Factory security intel 8659 | -5/Upper Caves | Learned location of 1 exit from Factory 8693 | -5/Upper Caves | Found Botcube 8745 | -5/Upper Caves | Discovered new exit (range 15) 8749 | -5/Upper Caves | Identified exit to Warlord 8750 | -5/Upper Caves | Entered Warlord 9110 | -5/Warlord | Build established: Hacker-Assassin 9143 | -5/Warlord | Warlord's base attacked by MAIN.C 9152 | -5/Warlord | Found Prototype Energy Cannon 9152 | -5/Warlord | Identified Vortex Driver 9157 | -5/Warlord | Found Prototype Energy Gun 9157 | -5/Warlord | Identified Vortex Rail 9163 | -5/Warlord | Found Vortex Driver 9174 | -5/Warlord | Rebuked by Warlord 9196 | -5/Warlord | Found Prototype Device 9196 | -5/Warlord | Identified Exp. Focal Shield 9199 | -5/Warlord | Found Prototype Device 9199 | -5/Warlord | Identified Exp. Phase Shifter 9209 | -5/Warlord | Found Prototype Processor 9209 | -5/Warlord | Identified Exp. Armor Integrity Analyzer 9236 | -5/Warlord | Found Vortex Rail 9294 | -5/Warlord | Learned Research security intel 9294 | -5/Warlord | Learned Factory fabricator intel 9294 | -5/Warlord | Learned 4 Access zone layouts 9294 | -5/Warlord | Learned location of Testing (-2) 9311 | -5/Warlord | Opened side exit 9319 | -5/Warlord | Discovered new exit (range 11) 9326 | -5/Warlord | Identified exit to Proximity Caves 9326 | -5/Warlord | Entered Proximity Caves 9365 | -4/Proximity Caves | Destroyed 8 combat bots 9390 | -4/Proximity Caves | Spotter reported a threat 9409 | -4/Proximity Caves | Learned 8 Research zone layouts 9418 | -4/Proximity Caves | Discovered exit to Factory (range 18) 9446 | -4/Proximity Caves | Build established: Hacker-Scout 9455 | -4/Proximity Caves | Spotter reported a threat 9462 | -4/Proximity Caves | Entered Factory 9462 | -4/Factory | Evolved 2 slots: Propulsion x1, Utility x1 9463 | -4/Factory | Identified exit to Research 9464 | -4/Factory | Identified exit to Upper Caves 9467 | -4/Factory | Loaded intel: 6 fabricator locations 9771 | -4/Factory | Loaded intel: 8 recycling unit locations 10075 | -4/Factory | Sucked down chute 10075 | -4/Factory | Entered Waste 10078 | -4/Waste | Spotted C-40 Crusher 10079 | -4/Waste | Spotted C-40 Crusher 10083 | -4/Waste | Spotted C-40 Crusher 10083 | -4/Waste | Spotted C-40 Crusher 10086 | -4/Waste | Found Prototype Device 10086 | -4/Waste | Identified Femtoactuators 10096 | -4/Waste | Spotted C-40 Crusher 10100 | -4/Waste | Spotted C-40 Crusher 10101 | -4/Waste | Discovered new exit (range 12) 10103 | -4/Waste | Identified exit to Factory 10104 | -4/Waste | Entered Factory 10426 | -4/Factory | Repaired Mni. Smartbomb Launcher 10478 | -4/Factory | Repaired Lgt. Fission Core+ 10604 | -4/Factory | First assault squad dispatched 10629 | -4/Factory | Spotted B-86 Titan 10647 | -4/Factory | Discovered exit to Upper Caves (range 17) 10777 | -4/Factory | Loaded intel: 8 recycling unit locations 11051 | -4/Factory | Repaired Cld. VTOL Module 11248 | -4/Factory | Adv. Hacking Suite fried by hacking feedback 11297 | -4/Factory | Entered Upper Caves 11388 | -4/Upper Caves | Discovered new exit (range 8) 11390 | -4/Upper Caves | Identified exit to Upper Caves 11418 | -4/Upper Caves | Entered another Upper Caves area 11445 | -4/Upper Caves | Learned location of Armory (-3) 11509 | -4/Upper Caves | Discovered new exit (range 10) 11511 | -4/Upper Caves | Identified exit to Zhirov 11511 | -4/Upper Caves | Entered Zhirov 11511 | -4/Zhirov | Discovered new exit (range 3) 11515 | -4/Zhirov | Met Zhirov 11520 | -4/Zhirov | Learned location of Command (-1) 11524 | -4/Zhirov | Zhirov requested help retrieving the SGEMP Prototype 11528 | -4/Zhirov | Found Alien Artifact 11528 | -4/Zhirov | Identified Integrated Reactor 11528 | -4/Zhirov | Installed Integrated Reactor, increased core energy generation (+10) 11541 | -4/Zhirov | Found Alien Artifact 11552 | -4/Zhirov | Identified exit to Proximity Caves 11552 | -4/Zhirov | Entered Proximity Caves 11555 | -3/Proximity Caves | Spotter reported a threat 11642 | -3/Proximity Caves | Spotted B-86 Titan 11832 | -3/Proximity Caves | Discovered exit to Research (range 12) 11834 | -3/Proximity Caves | Entered Research 11834 | -3/Research | Evolved 2 slots: Power x1, Propulsion x1 11835 | -3/Research | Identified exit to Research 11836 | -3/Research | Identified exit to Armory 11838 | -3/Research | Loaded intel: 22 terminal locations 12238 | -3/Research | Identified Transdimensional Reconstructor 12305 | -3/Research | Spotted B-86 Titan 12324 | -3/Research | Fabricated Adv. Hacking Suite? 12406 | -3/Research | Fabricated Adv. Hacking Suite (x1) 12498 | -3/Research | Entered Armory 12579 | -3/Armory | Repaired Exp. Utility Shielding 12675 | -3/Armory | Assisted by bots powering up and referring to "LRC-V3" 12975 | -3/Armory | Lost 3 allies 13005 | -3/Armory | Scraphulk reinforcements arrived 13127 | -3/Armory | Energy Cycler disabled 13148 | -3/Armory | Spotted B-86 Titan 13206 | -3/Armory | Fabricated Nanosword? 13901 | -3/Armory | Spotted Armor Guard 13901 | -3/Armory | Spotted Armor Guard 13924 | -3/Armory | Discovered new exit (range 3) 13924 | -3/Armory | Identified exit to Lab 13928 | -3/Armory | Entered Lab 13930 | -3/Lab | Identified Enh. Scrap Shield 13932 | -3/Lab | Discovered exit to Research (range 9) 13951 | -3/Lab | Unable to decrypt terminal 13951 | -3/Lab | Opened the door to a hidden lab 13952 | -3/Lab | Gained access to the hidden lab's interior 13954 | -3/Lab | Detected by scanners 13959 | -3/Lab | Lost 4 parts (2p1n1w) 13960 | -3/Lab | Confronted by A5 14022 | -3/Lab | System corruption reached 10% 14057 | -3/Lab | Core integrity fell below 50% 14067 | -3/Lab | Destroyed A5 14076 | -3/Lab | Found Prototype Device 14076 | -3/Lab | Identified AEGIS Remote Shield 14079 | -3/Lab | Found Prototype Hackware 14079 | -3/Lab | Identified Quantum Router 14080 | -3/Lab | Lost 4 parts (4n) 14083 | -3/Lab | Found Prototype Energy Cannon 14083 | -3/Lab | Identified Warp Cannon 14087 | -3/Lab | Found Prototype Energy Cannon 14087 | -3/Lab | Identified Potential Cannon 14101 | -3/Lab | Found Integrated Reactor 14101 | -3/Lab | Installed Integrated Reactor, increased core energy generation (+10) 14107 | -3/Lab | Found Alien Artifact 14128 | -3/Lab | Found Transdimensional Reconstructor 14239 | -3/Lab | Entered Research 14239 | -2/Research | Evolved 2 slots: Utility x1, Weapon x1 14240 | -2/Research | Identified exit to Testing 14438 | -2/Research | Warped through subspace 14461 | -2/Research | Identified Core Regenerator 14461 | -2/Research | Used Core Regenerator, restored core integrity (+362) 14484 | -2/Research | Discovered new exit (range 21) 14691 | -2/Research | Intercept squad dispatched 14701 | -2/Research | Entered Testing 14708 | -2/Testing | Found Prototype Energy Cannon 14708 | -2/Testing | Identified Disintegrator 14718 | -2/Testing | Found Prototype Processor 14718 | -2/Testing | Identified Exp. Core Analyzer 14725 | -2/Testing | Lost 3 parts (2n1u) 14824 | -2/Testing | Spotted Striker 14856 | -2/Testing | Found Prototype Device 14862 | -2/Testing | Found Prototype Launcher 14864 | -2/Testing | Identified Exp. Weapon Cycler 14864 | -2/Testing | Identified Gui. Micro-nuke Launcher 14956 | -2/Testing | Fabricated Femtoactuators (x1) 14983 | -2/Testing | Found Prototype Protection 14983 | -2/Testing | Identified Hvy. Regenerative Plating 15015 | -2/Testing | Intercept squad dispatched 15030 | -2/Testing | Spotted Tracker 15035 | -2/Testing | Destroyed Tracker 15036 | -2/Testing | Spotted Tracker 15037 | -2/Testing | Scanned by Researcher 15041 | -2/Testing | Destroyed Tracker 15052 | -2/Testing | Fabricated Exp. Transmission Jammer (x1) 15072 | -2/Testing | Spotted Combat Programmer 15072 | -2/Testing | Spotted Combat Programmer 15074 | -2/Testing | Warped through subspace 15087 | -2/Testing | Repaired Imp. Utility Shielding 15091 | -2/Testing | Lost 5 parts (1p4n) 15217 | -2/Testing | Core integrity fell below 50% 15281 | -2/Testing | Lost 3 parts (1n1u1w) 15333 | -2/Testing | Spotted Striker 15359 | -2/Testing | Core integrity fell below 20% 15368 | -2/Testing | Destroyed by S-43 Plague with Heavy Machine Gun Last Messages --------------- 15345_ Door malfunctions. 15346_ Acquired Exp. Transmission Jammer. 15346_ P-80 Master resets S-43 Plague, system corruption cleaned. 15350_ U-05 Engineer lays Concrete. 15351_ Imp. Antigrav System destroyed. 15357_ P-80 Master resets S-43 Plague, system corruption cleaned. 15357_ Dropped Lrg. Storage Unit. 15358_ Dropped Enh. Scrap Shield. 15359_ P-80 Master resets C-65 Expert, system corruption cleaned. 15360_ Acquired Adv. Cloaking Device. 15360_ U-05 Engineer repairs door. 15365_ Acquired Exp. Transmission Jammer. 15365_ Imp. Utility Shielding destroyed. 15365_ Adv. Hacking Suite destroyed. 15367_ Slammed into U-05 Engineer. 15367_ C-65 Expert calls for reinforcements. 15367_ ALERT: Hostile activity reported, dispatching reinforcements to area. 15367_ Held in stasis. 15367_ C-65 Expert is analyzing... Map ----- +----------------------------------------------------+ | ?????????????????????????????????????????????????? | | ?????????????????????????????????????????????????? | | ?????????????????????????????????????????????????? | | ?????????????????????????????????????????????????? | | ?????????????????????????????????????????????????? | | ?????????#++#????????????????????????????????????? | | ?????????# #????????????????????????????????????? | | ????????? ????????????????????????????????????? | | ?????????# #????????????????????????????????????? | | ?????????# #????????????????????????????????????? | | ?????????# ###########???????????????????o??????? | | ?????????# #%[ #??????????????????????????? | | ?????????# =# ![ #??????????????????????????? | | ?????????+ =+%[= #??????????????????????????? | | ?????????# [#=!![[ ##########?????????????????? | | ?????????# #*""!"" ##"""""""#?????????????????? | | ?????????# # ""R""! ##"""""""#?????????????????? | | ?????????# # """"!% ##"![""""#?????????????????? | | ?????????# # [!*!!##$$$!" "#????????########?? | | ?????????# ############!%" """#??????? = #?? | | ?????????# #??????????#[% !=!=#######? #?? | | ?????????# #############+####### # = #?? | | ?????????# =]!%!=% # #?? | | ?????????# !!!u![*= " / #?? | | ?????????# """"""" """b!####### # """"""" #?? | | ########## """"""" """u@############ """"""" #?? | | # """"""" "!%# #???"""""""???? | | """"""" # "F"! u #???#######???? | | """"""" # """ss# #?????????????? | | """"""" + gpggg # #?????????????? | | # cp + #?????????????? | | """ """ ##+#+### ###### # #?????????????? | | """S""" ## # #????# # #?????????????? | | ## # #????# # #?????????????? | | ########### """# #????# # #?????????????? | | ??????????#! """# #????# #######+########???????? | | ??????????# """# #????# #?????# # #???????? | | ??????????# # #???## ##????# # ] #???????? | | ??????????# # #???# ###### # """ #???????? | | ??????????####### #???# "" # """ #???????? | | ?????????????#### #???# "T + "S!! ########? | | ?????????????# #???# ##### # """ # #? | | ??????######?# ##########???# # "" !# """ #? | | ??????#!!!!#?# # #???# # # """ #? | | ??????## ""#?# + #???# ######+# """ #? | | ??????#" T#?# # = #???# ###### #= #? | | ??????# ##?# # === ##### # """ #? | | ??????# ### # + + """ #? | | ??????#T # """"" #####+######### """ #? | | ??????# # """"" #?# #?????# #? | +----------------------------------------------------+ Best States ------------- Heat Dissipation 63 Energy Generation 57 Energy Capacity 300 Matter Stores 300 Matter Capacity 300 Sight Range 23 Robot Scan Range 18 Terrain Scan Density 10 ECM Strength 2 Corruption Containment 8 Armor Coverage 800 Resistance: KI 30 Resistance: TH 25 Propulsion Shielding 66 Utility Shielding 90 Melee Speed Boost 50 Phase Shifting 20 Evasion (%) 83 Melee Accuracy 6 Core Analysis 8 Armor Integrity Analysis 50 Recoil Reduction 4 Offensive Hacking 56 Defensive Hacking 25 Authchip Count 3 Trap Extractor Capacity 8 Item Schematics ----------------- Adv. Trap Extractor | -5/Factory | Scanalyzed Exp. Utility Shielding | -5/Factory | Hacked Cmb. Linear Gravjet | -4/Factory | Hacked Exp. Phase Shifter | -4/Factory | Scanalyzed Adv. Hacking Suite | -4/Factory | Hacked Quantum Capacitor | -4/Factory | Hacked Assault Drone Bay | -4/Zhirov | Free Exp. Heat Sink | -4/Zhirov | Free Exp. Optical Array | -4/Zhirov | Free Imp. Arc Thrower | -4/Zhirov | Free Exp. Cloaking Device | -3/Research | Hacked Enh. Hardcell Cannon | -3/Armory | Hacked Nanosword | -3/Armory | Hacked Exp. Transmission Jammer | -2/Research | Hacked Femtoactuators | -2/Testing | Scanalyzed Robot Schematics ------------------ None Fabricated ------------ Exp. Utility Shielding | x1 | -5/Factory | Authchip Adv. Hacking Suite | x1 | -3/Research | Authchip Adv. Hacking Suite | x1 | -3/Research | Authchip Nanosword | x1 | -3/Armory | Authchip Femtoactuators | x1 | -2/Testing Exp. Transmission Jammer | x1 | -2/Testing Repaired ---------- Mni. Smartbomb Launcher | 13% | -4/Factory Lgt. Fission Core | 20% | -4/Factory Cld. VTOL Module | 3% | -4/Factory Exp. Utility Shielding | 28% | -3/Armory Imp. Utility Shielding | 7% | -2/Testing Studied --------- VTOL Module | -6/Factory | Hacked Xenon Bombardment Thruster | -6/Factory | Hacked Lgt. Nuclear Core | -6/Factory | Hacked Lgt. Fission Core | -4/Factory | Hacked Alien Tech Used ----------------- Integrated Reactor Transdimensional Reconstructor Core Regenerator Achievements -------------- Fixer-Upper Look Less Dangerous Next Time Myspace Challenges ------------ None Game ------ Seed CoolingChromaticBox Manual? 0 Play Time 03:16:55 Cumulative 835.0 hours Start 2025.11.24 @ 21:38:40 End 2025.11.26 @ 23:28:08 Sessions 5 Manual Loads 0 Difficulty Rogue Special Mode None Game No. 842 Rogue 842 Adventurer 0 Explorer 0 Win Type - Total 40 Types 15/4/11/2/0/0/5/2/1/0 Lore% 96 Gallery% 86 Achievement% 64 Wizard Run 0 Options --------- Layout 0 ASCII 0 Keyboard 0 Movement Numpad Keybinds 0 Fullscreen 1 Font 18/Smallcaps Map View 76x50 Zoom Use 0% Tactical HUD 1 Map Filters NONE Filters NONE Steam 1 RUN: 339f0bbd-a9fa-46ea-89c4-238b9f723741